bitfinex-derivatives/quotes_BTCF0:USTF0_20251030
["timestamp","ask_amount","ask_price","bid_price","bid_amount"]
[1761853061856,0.3608,106780.0,106770.0,0.03561]
[1761853062056,0.68741194,106780.0,106770.0,0.03561]
[1761853062258,0.68461194,106780.0,106770.0,0.03561]
[1761853062561,1.04423697,106780.0,106760.0,0.03519]
[1761853062768,0.60767563,106770.0,106760.0,0.01343]
[1761853062954,0.60767563,106770.0,106750.0,0.03561]
[1761853062955,0.74955123,106770.0,106750.0,0.03561]
[1761853063151,0.3608,106760.0,106750.0,0.05697]
[1761853063354,0.54461194,106760.0,106750.0,0.05697]
[1761853063554,0.54592806,106760.0,106750.0,0.05697]
[1761853064470,0.54592806,106760.0,106750.0,0.30384563]
[1761853064766,0.18512806,106760.0,106750.0,0.30484563]
[1761853064965,0.00131612,106760.0,106750.0,0.66564563]
[1761853065561,0.001,106760.0,106750.0,0.41877]
[1761853065755,0.021,106760.0,106750.0,0.05797]
[1761853065954,0.021,106760.0,106750.0,0.30484563]
[1761853066560,0.001,106760.0,106750.0,0.66564563]
[1761853066866,0.01065967,106760.0,106750.0,0.66564563]
[1761853067365,0.3608,106780.0,106770.0,0.04312]
[1761853067565,0.38573929,106790.0,106780.0,0.04312]
[1761853067766,0.6908,106790.0,106780.0,0.28999563]
[1761853067968,0.33,106790.0,106780.0,0.28999563]
[1761853068265,0.34010802,106790.0,106780.0,0.28999563]
[1761853068662,0.70090802,106790.0,106780.0,0.28999563]
[1761853068861,0.34010802,106790.0,106780.0,0.28999563]
[1761853069062,0.34310802,106790.0,106780.0,0.28999563]
[1761853069664,0.70090802,106790.0,106770.0,0.36964]
[1761853069861,0.3608,106780.0,106770.0,0.36964]
[1761853070061,0.3808,106780.0,106770.0,0.36964]
[1761853070263,0.37490802,106790.0,106780.0,0.04312]
[1761853070470,0.66490802,106790.0,106780.0,0.04312]
[1761853071066,0.66190802,106790.0,106780.0,0.04312]
[1761853071272,0.66090802,106790.0,106780.0,0.36868]
[1761853071861,0.66490802,106790.0,106780.0,0.36868]
[1761853072970,0.30410802,106790.0,106780.0,0.36868]
[1761853073177,0.66490802,106790.0,106780.0,0.38215]
[1761853073665,0.30410802,106790.0,106780.0,0.62902563]
[1761853073869,0.06410802,106790.0,106780.0,0.62902563]
[1761853074467,0.06410802,106790.0,106780.0,0.98982563]
[1761853074956,0.06410802,106790.0,106780.0,0.38315]
[1761853074957,0.06010802,106790.0,106780.0,0.38315]
[1761853075157,0.06110802,106790.0,106780.0,0.38315]
[1761853075361,0.06110802,106790.0,106780.0,0.63002563]
[1761853075562,0.01110802,106790.0,106780.0,0.63002563]
[1761853075759,0.01110802,106790.0,106780.0,0.99082563]
[1761853076269,0.06110802,106790.0,106780.0,0.99082563]
[1761853078073,0.06110802,106790.0,106780.0,0.38315]
[1761853078368,0.06110802,106790.0,106780.0,0.66526563]
[1761853078570,0.06110802,106790.0,106780.0,0.62994563]
[1761853079371,0.06110802,106790.0,106780.0,0.99074563]
[1761853080772,0.06110802,106790.0,106780.0,0.62994563]
[1761853080971,0.06110802,106790.0,106780.0,0.99074563]
[1761853081171,0.06110802,106790.0,106780.0,0.62994563]
[1761853081372,0.06110802,106790.0,106780.0,0.38299]
[1761853081672,0.06110802,106790.0,106750.0,0.05282227]
[1761853081673,1.09153305,106790.0,106750.0,0.05282227]
[1761853081879,0.04252,106750.0,106740.0,0.99156563]
[1761853082069,0.04252,106750.0,106740.0,0.63076563]
[1761853082070,0.06252,106750.0,106740.0,0.63076563]
[1761853082281,0.05,106750.0,106740.0,0.62114563]
[1761853082473,0.42702,106750.0,106740.0,0.05805]
[1761853082771,0.37702,106750.0,106740.0,0.05805]
[1761853082974,0.39702,106750.0,106740.0,0.38397]
[1761853083576,0.06622,106750.0,106740.0,0.38397]
[1761853083877,0.42702,106750.0,106740.0,0.38397]
[1761853084079,0.06622,106750.0,106740.0,0.38597]
[1761853084270,0.06722,106750.0,106740.0,0.38797]
[1761853084775,0.06722,106750.0,106740.0,0.63484563]
[1761853085371,0.37802,106750.0,106740.0,0.63484563]
[1761853085575,0.41802,106750.0,106740.0,0.30892563]
[1761853085780,0.41802,106750.0,106740.0,0.63480563]
[1761853086771,0.49477484,106750.0,106740.0,0.63480563]
[1761853088274,0.49477484,106750.0,106740.0,0.38793]
[1761853088674,0.49477484,106750.0,106740.0,0.63480563]
[1761853088986,0.74477484,106750.0,106740.0,0.06205]
[1761853089173,0.74477484,106750.0,106740.0,0.38785]
[1761853090271,0.74477484,106750.0,106740.0,0.06205]
[1761853090474,0.74477484,106750.0,106740.0,0.38781]
[1761853090977,0.55477484,106750.0,106740.0,0.38781]
[1761853091183,0.19397484,106750.0,106740.0,0.06205]
[1761853091573,0.19397484,106750.0,106740.0,0.38777]
[1761853091774,0.19397484,106750.0,106740.0,0.06205]
[1761853091974,0.19397484,106750.0,106740.0,0.38777]
[1761853092886,0.55477484,106750.0,106740.0,0.38777]
[1761853093277,0.19397484,106750.0,106740.0,0.38777]
[1761853093886,0.55477484,106750.0,106740.0,0.38777]
[1761853094186,0.19397484,106750.0,106740.0,0.38777]
[1761853095186,0.001,106750.0,106740.0,1.08915403]
[1761853095381,0.37702,106780.0,106770.0,0.05805]
[1761853095588,0.65702,106780.0,106770.0,0.05805]
[1761853096584,0.66102,106780.0,106770.0,0.05905]
[1761853097092,0.66302,106780.0,106770.0,0.05905]
[1761853098083,0.1401121,106770.0,106760.0,0.33935]
[1761853098283,0.5626021,106770.0,106760.0,0.38298]
[1761853098488,0.2018021,106770.0,106760.0,0.38298]
[1761853098686,0.1901121,106770.0,106760.0,0.38298]
[1761853098882,0.2032321,106770.0,106760.0,0.38298]
[1761853099589,0.1901121,106770.0,106760.0,0.38298]
[1761853099791,0.1931121,106770.0,106760.0,0.38298]
[1761853099997,0.1931121,106770.0,106760.0,0.62985563]
[1761853100385,0.1941121,106770.0,106760.0,0.62985563]
[1761853100693,0.5680321,106770.0,106760.0,0.38217]
[1761853101298,0.5650321,106770.0,106760.0,0.38217]
[1761853101490,0.5650321,106770.0,106760.0,0.38317]
[1761853101793,0.2042321,106770.0,106760.0,0.38317]
[1761853102884,0.1532321,106770.0,106760.0,0.38317]
[1761853103084,0.5219121,106770.0,106760.0,0.38317]
[1761853103285,0.1611121,106770.0,106760.0,0.63004563]
[1761853103482,0.5019121,106770.0,106760.0,0.63004563]
[1761853103682,0.1611121,106770.0,106760.0,0.63004563]
[1761853103898,0.1411121,106770.0,106760.0,0.63004563]
[1761853104089,0.1611121,106770.0,106760.0,0.63004563]
[1761853104595,0.5219121,106770.0,106760.0,0.63004563]
[1761853104803,0.0611121,106770.0,106760.0,0.38317]
[1761853104998,0.4219121,106770.0,106760.0,0.38317]
[1761853105295,0.0811121,106770.0,106760.0,0.38317]
[1761853105697,0.0611121,106770.0,106760.0,0.38317]
[1761853105887,0.4219121,106770.0,106760.0,0.38317]
[1761853107796,0.4324721,106770.0,106760.0,0.38317]
[1761853108100,0.4219121,106770.0,106760.0,0.38317]
[1761853108302,0.44601463,106770.0,106760.0,0.38317]
[1761853108691,0.08521463,106770.0,106760.0,0.38317]
[1761853108900,0.08521463,106770.0,106760.0,0.63004563]
[1761853109302,0.02510253,106770.0,106760.0,0.63004563]
[1761853109600,0.04510253,106770.0,106760.0,0.99084563]
[1761853109899,0.021,106770.0,106760.0,0.99084563]
[1761853110112,0.001,106770.0,106760.0,0.99084563]
[1761853111398,0.09399,106770.0,106760.0,0.99084563]
[1761853112200,0.16414283,106780.0,106770.0,0.0587]
[1761853112396,0.51198832,106780.0,106770.0,0.0587]
[1761853113894,0.51498832,106780.0,106770.0,0.0587]
[1761853114090,0.51598832,106780.0,106770.0,0.0587]
[1761853114297,0.87678832,106780.0,106770.0,0.0587]
[1761853114898,0.87678832,106780.0,106770.0,0.38398]
[1761853115701,0.87678832,106780.0,106770.0,0.63085563]
[1761853115896,0.51598832,106780.0,106770.0,0.63085563]
[1761853116306,0.0916641,106780.0,106770.0,0.99445563]
[1761853116506,0.0916641,106780.0,106770.0,0.99165563]
[1761853117502,0.1243841,106780.0,106770.0,0.74478]
[1761853117698,0.0916641,106780.0,106770.0,0.66837563]
[1761853117898,0.0916641,106780.0,106770.0,0.99373563]
[1761853119104,0.0886641,106780.0,106770.0,0.99573563]
[1761853119308,0.1086641,106780.0,106770.0,1.11095826]
[1761853119510,0.0255241,106780.0,106770.0,0.4235]
[1761853119816,0.0423841,106780.0,106770.0,0.38798]
[1761853120001,0.08372,106780.0,106770.0,0.0627]
[1761853120208,0.08372,106780.0,106770.0,0.38802]
[1761853120413,0.15680502,106780.0,106770.0,0.38802]
[1761853120708,0.13994502,106780.0,106770.0,0.38802]
[1761853121016,0.10994502,106780.0,106770.0,0.74882]
[1761853121312,0.12680502,106780.0,106770.0,0.38802]
[1761853122403,0.79760502,106780.0,106770.0,0.0627]
[1761853122705,1.42172863,106780.0,106770.0,0.0627]
[1761853123814,1.52167803,106780.0,106770.0,0.0627]
[1761853124005,0.92167803,106780.0,106770.0,0.004]
[1761853124809,0.94661732,106780.0,106770.0,0.004]
[1761853125207,0.95941732,106780.0,106770.0,0.004]
[1761853125706,0.92167803,106780.0,106770.0,0.004]
[1761853126305,0.92167803,106780.0,106770.0,0.0627]
[1761853126511,0.82172863,106780.0,106770.0,0.0627]
[1761853128804,0.46092863,106780.0,106770.0,0.0627]
[1761853129013,0.82172863,106780.0,106770.0,0.0627]
[1761853130304,0.46092863,106780.0,106770.0,0.0627]
[1761853131014,0.46092863,106780.0,106770.0,0.4235]
[1761853131214,0.46092863,106780.0,106770.0,0.0627]
[1761853131614,0.82172863,106780.0,106770.0,0.0627]
[1761853131815,0.46092863,106780.0,106770.0,0.0627]
[1761853133507,0.43680502,106780.0,106770.0,0.0627]
[1761853133704,0.82168152,106780.0,106770.0,0.0627]
[1761853134309,0.46088152,106780.0,106770.0,0.0627]
[1761853134609,0.82168159,106780.0,106770.0,0.0627]
[1761853135115,0.46088159,106780.0,106770.0,0.0627]
[1761853136011,0.82168159,106780.0,106770.0,0.0627]
[1761853136213,0.46088159,106780.0,106770.0,0.0627]
[1761853137116,0.82168159,106780.0,106770.0,0.0627]
[1761853138419,0.82168159,106780.0,106770.0,0.004]
[1761853139116,0.82168159,106780.0,106770.0,0.02658]
[1761853139519,0.82168159,106780.0,106770.0,0.04927]
[1761853139717,0.92163099,106780.0,106770.0,0.06228]
[1761853140219,0.82168159,106780.0,106770.0,0.004]
[1761853141211,0.92163099,106780.0,106770.0,0.004]
[1761853141520,1.11922387,106780.0,106770.0,0.004]
[1761853142215,0.03372,106750.0,106740.0,0.41954]
[1761853142514,0.03372,106760.0,106750.0,0.01301]
[1761853142714,0.03372,106770.0,106760.0,0.05828]
[1761853143020,0.69859978,106770.0,106760.0,0.05828]
[1761853144119,0.33779978,106770.0,106760.0,0.05828]
[1761853144414,0.69959978,106770.0,106760.0,0.05928]
[1761853144813,0.70059978,106770.0,106760.0,0.05928]
[1761853145012,0.33979978,106770.0,106760.0,0.05928]
[1761853145214,0.70059978,106770.0,106760.0,0.05928]
[1761853146217,0.70059978,106770.0,106740.0,0.05874]
[1761853146218,0.03372,106750.0,106740.0,0.05874]
[1761853146413,0.08372,106750.0,106740.0,0.05874]
[1761853146614,0.05372,106750.0,106740.0,0.41954]
[1761853146923,0.31452,106760.0,106750.0,0.05828]
[1761853147222,0.62857269,106760.0,106750.0,0.05828]
[1761853147721,0.62857114,106760.0,106750.0,0.05828]
[1761853148119,0.72952054,106760.0,106750.0,0.05828]
[1761853148324,0.73052054,106760.0,106750.0,0.03559]
[1761853148913,0.63057114,106760.0,106750.0,0.05828]
[1761853149124,0.63057114,106760.0,106750.0,0.01301]
[1761853149723,0.63057114,106760.0,106750.0,0.05828]
[1761853151224,0.31605114,106760.0,106750.0,0.05828]
[1761853151419,0.67685114,106760.0,106750.0,0.05828]
[1761853153019,0.77680054,106760.0,106750.0,0.05828]
[1761853153220,0.77680054,106760.0,106750.0,0.01301]
[1761853153528,0.77580054,106760.0,106750.0,0.01301]
[1761853153726,0.77680054,106760.0,106750.0,0.01301]
[1761853154327,0.67685114,106760.0,106750.0,0.01301]
[1761853154515,0.67685114,106760.0,106750.0,0.03559]
[1761853154721,0.67785114,106760.0,106750.0,0.03659]
[1761853155326,0.77780054,106760.0,106750.0,0.03659]
[1761853155526,0.78780054,106760.0,106750.0,0.01401]
[1761853155727,0.79780054,106760.0,106750.0,0.001]
[1761853155926,1.1528297,106760.0,106750.0,0.001]
[1761853156116,1.1428297,106760.0,106750.0,0.001]
[1761853156320,0.79060054,106760.0,106750.0,0.001]
[1761853156616,0.78780054,106760.0,106750.0,0.001]
[1761853156814,0.79060054,106760.0,106750.0,0.001]
[1761853157015,1.1528297,106760.0,106750.0,0.001]
[1761853157231,1.1500297,106760.0,106740.0,0.0584]
[1761853157426,0.3608,106750.0,106740.0,0.0584]
[1761853157622,0.6608,106750.0,106740.0,0.0584]
[1761853157825,0.69483647,106750.0,106740.0,0.0584]
[1761853158119,0.68483647,106750.0,106740.0,0.0584]
[1761853158323,0.68483647,106750.0,106740.0,0.01347]
[1761853158525,0.68483647,106750.0,106740.0,0.0584]
[1761853159325,1.38234563,106750.0,106720.0,0.08819675]
[1761853159523,0.3608,106730.0,106720.0,0.08819675]
[1761853159828,1.0455502,106730.0,106720.0,0.03025675]
[1761853160123,1.0555502,106730.0,106720.0,0.03025675]
[1761853160430,1.51772876,106730.0,106720.0,0.03025675]
[1761853160730,1.1554996,106730.0,106720.0,0.03025675]
[1761853161223,2.11872876,106730.0,106720.0,0.02825675]
[1761853161428,0.0024,106720.0,106700.0,0.01374]
[1761853161628,0.3608,106710.0,106700.0,0.05833]
[1761853161928,0.72613122,106710.0,106690.0,0.0361]
[1761853162128,0.3608,106700.0,106690.0,0.01374]
[1761853162329,0.7008,106700.0,106690.0,0.05833]
[1761853162529,0.71265308,106700.0,106690.0,0.05833]
[1761853163029,0.72223298,106700.0,106690.0,0.05833]
[1761853163435,0.72323298,106700.0,106690.0,0.05833]
[1761853164227,0.79970157,106700.0,106690.0,0.05833]
[1761853164428,0.80070157,106700.0,106690.0,0.05833]
[1761853164625,0.90065097,106700.0,106690.0,0.05833]
[1761853165332,0.89965097,106700.0,106690.0,0.05833]
[1761853165531,0.90165097,106700.0,106690.0,0.05933]
[1761853165734,0.90065097,106700.0,106690.0,0.05933]
[1761853166035,0.90165097,106700.0,106690.0,0.05933]
[1761853166239,1.10951208,106700.0,106690.0,0.001]
[1761853166531,1.09951208,106700.0,106690.0,0.001]
[1761853166834,1.09951208,106700.0,106690.0,0.01474]
[1761853167038,1.10951208,106700.0,106690.0,0.001]
[1761853167226,1.71231208,106700.0,106690.0,0.001]
[1761853167425,0.0249,106690.0,106640.0,0.3608]
[1761853167730,0.75056,106650.0,106640.0,0.05833]
[1761853167933,0.72976,106650.0,106640.0,0.05833]
[1761853168130,0.7350346,106650.0,106640.0,0.05833]
[1761853168332,0.3742346,106650.0,106640.0,0.05833]
[1761853168535,0.7350346,106650.0,106640.0,0.24096111]
[1761853168735,0.80934877,106650.0,106640.0,0.02074]
[1761853168935,0.81334877,106650.0,106640.0,0.06533]
[1761853169232,0.024,106650.0,106640.0,0.26319111]
[1761853169436,0.38976,106670.0,106660.0,0.04459]
[1761853169735,0.02896,106650.0,106640.0,0.02074]
[1761853169933,0.07896,106650.0,106640.0,0.06533]
[1761853170433,0.1093132,106650.0,106640.0,0.05933]
[1761853170730,0.71684268,106650.0,106640.0,0.05933]
[1761853170924,0.54684268,106650.0,106640.0,0.05933]
[1761853171327,0.49684268,106650.0,106640.0,0.05933]
[1761853171530,0.54684268,106650.0,106640.0,0.05933]
[1761853172132,0.17804268,106650.0,106640.0,0.42013]
[1761853172352,0.17804268,106650.0,106640.0,0.05933]
[1761853172535,0.006,106650.0,106640.0,1.02013]
[1761853173021,0.006,106650.0,106640.0,1.02293]
[1761853173426,0.026,106650.0,106640.0,1.02293]
[1761853173625,0.006,106650.0,106640.0,0.66213]
[1761853173828,0.3868,106650.0,106640.0,0.66213]
[1761853174534,0.3868,106650.0,106640.0,0.65933]
[1761853174738,0.44576,106650.0,106640.0,0.65933]
[1761853174937,0.51913646,106650.0,106640.0,0.98545]
[1761853175136,0.50465646,106650.0,106640.0,0.65933]
[1761853175442,0.50465646,106650.0,106640.0,0.98545]
[1761853175737,0.49017646,106650.0,106640.0,0.98545]
[1761853176332,0.50465646,106650.0,106640.0,0.98545]
[1761853176833,0.54548966,106650.0,106640.0,0.05933]
[1761853178439,0.70548966,106650.0,106640.0,0.05933]
[1761853178640,0.53548966,106650.0,106640.0,0.05933]
[1761853179338,0.45863906,106650.0,106640.0,0.05933]
[1761853179644,0.81943906,106650.0,106640.0,0.05933]
[1761853180041,0.81943906,106650.0,106640.0,0.0371]
[1761853180235,0.81943906,106650.0,106640.0,0.05933]
[1761853180438,0.48948966,106650.0,106640.0,0.05933]
[1761853180741,0.21868966,106650.0,106640.0,0.05933]
[1761853181749,0.21868966,106650.0,106640.0,0.42013]
[1761853181939,0.21868966,106650.0,106640.0,0.05933]
[1761853182142,0.31863906,106650.0,106640.0,0.05933]
[1761853182945,0.43863906,106650.0,106640.0,0.05933]
[1761853183639,0.34262966,106650.0,106640.0,0.001]
[1761853183946,0.95095347,106650.0,106640.0,0.001]
[1761853184145,0.69948966,106650.0,106640.0,0.05933]
[1761853184738,0.79943906,106650.0,106640.0,0.05933]
[1761853184943,0.69948966,106650.0,106640.0,0.05933]
[1761853185144,0.70342966,106650.0,106640.0,0.001]
[1761853186150,0.79943906,106650.0,106640.0,0.0371]
[1761853186350,0.82724706,106650.0,106640.0,0.001]
[1761853186740,1.08477087,106650.0,106640.0,0.001]
[1761853186945,1.07477097,106650.0,106640.0,0.001]
[1761853187147,0.82724716,106650.0,106640.0,0.001]
[1761853187451,1.15316716,106650.0,106640.0,0.001]
[1761853188040,0.82330716,106650.0,106640.0,0.05933]
[1761853189752,0.83330716,106650.0,106640.0,0.05933]
[1761853190044,0.46250716,106650.0,106640.0,0.05933]
[1761853190248,0.82330716,106650.0,106640.0,0.05933]
[1761853190449,0.46250716,106650.0,106640.0,0.05933]
[1761853190646,0.82330716,106650.0,106640.0,0.05933]
[1761853191149,0.46250716,106650.0,106640.0,0.05933]
[1761853191349,0.82724716,106650.0,106640.0,0.00125]
[1761853191543,0.82330716,106650.0,106640.0,0.03796]
[1761853191746,0.82330716,106650.0,106640.0,0.00125]
[1761853191946,1.07083097,106650.0,106640.0,0.00125]
[1761853192146,0.71003097,106650.0,106640.0,0.0597]
[1761853192355,1.07083097,106650.0,106640.0,0.0597]
[1761853192850,0.82330716,106650.0,106640.0,0.0597]
[1761853193355,1.0213516,106650.0,106640.0,0.0597]
[1761853193656,0.6605516,106650.0,106640.0,0.25774444]
[1761853194147,1.0213516,106650.0,106640.0,0.25774444]
[1761853194349,0.6605516,106650.0,106640.0,0.25774444]
[1761853194548,1.0213516,106650.0,106640.0,0.0597]
[1761853194952,0.6605516,106650.0,106640.0,0.25774444]
[1761853195454,1.0213516,106650.0,106640.0,0.25774444]
[1761853195653,1.0213516,106650.0,106640.0,0.0597]
[1761853195853,0.6605516,106650.0,106640.0,0.0597]
[1761853196054,0.5606022,106650.0,106640.0,0.25774444]
[1761853196256,0.58566736,106650.0,106640.0,0.25774444]
[1761853196754,0.48566736,106650.0,106640.0,0.25774444]
[1761853197255,0.48566736,106650.0,106640.0,0.61854444]
[1761853197643,0.48566736,106650.0,106640.0,0.25774444]
[1761853198246,0.29590385,106650.0,106640.0,0.25774444]
[1761853198441,0.49394829,106650.0,106640.0,0.25774444]
[1761853199255,0.49394829,106650.0,106640.0,0.25674444]
[1761853199452,0.49494829,106650.0,106640.0,0.25674444]
[1761853199653,0.49494829,106650.0,106640.0,0.61754444]
[1761853200152,0.49594829,106650.0,106640.0,0.61754444]
[1761853200355,0.49594829,106650.0,106640.0,0.25674444]
[1761853200555,0.85674829,106650.0,106640.0,0.0587]
[1761853200854,0.65870385,106650.0,106640.0,0.25674444]
[1761853201047,0.85674829,106650.0,106640.0,0.25674444]
[1761853201251,0.94132497,106650.0,106640.0,0.00025]
[1761853201455,0.73328053,106650.0,106640.0,0.25674444]
[1761853201649,0.37248053,106650.0,106640.0,0.25674444]
[1761853201841,0.37248053,106650.0,106640.0,0.0587]
[1761853202045,0.37248053,106650.0,106640.0,0.81558888]
[1761853202247,0.10044478,106650.0,106640.0,1.23510388]
[1761853202557,0.02506633,106660.0,106640.0,1.23510388]
[1761853202558,0.02506633,106660.0,106650.0,0.1522362]
[1761853202750,0.05,106660.0,106650.0,0.41925]
[1761853202944,0.05,106660.0,106650.0,0.05845]
[1761853202945,0.37795715,106660.0,106650.0,0.05845]
[1761853203151,0.74703691,106660.0,106650.0,0.05845]
[1761853203350,0.41129812,106660.0,106650.0,0.25649444]
[1761853203555,0.37795203,106660.0,106650.0,0.25649444]
[1761853203755,0.57599647,106660.0,106650.0,0.25649444]
[1761853204055,0.37795203,106660.0,106650.0,0.05845]
[1761853204258,0.37895203,106660.0,106650.0,0.05845]
[1761853204753,0.37895203,106660.0,106650.0,0.25649444]
[1761853204954,0.41229812,106660.0,106650.0,0.05845]
[1761853205158,0.61034256,106660.0,106650.0,0.25649444]
[1761853205346,0.61034256,106660.0,106650.0,0.05845]
[1761853205547,0.57699647,106660.0,106650.0,0.05845]
[1761853205855,0.41329812,106660.0,106650.0,0.25649444]
[1761853206056,0.94708135,106660.0,106650.0,0.05845]
[1761853206249,1.24507519,106660.0,106650.0,0.01341]
[1761853206461,1.24507519,106660.0,106640.0,0.0587]
[1761853206752,0.58390616,106650.0,106640.0,0.0587]
[1761853206942,0.93219053,106650.0,106640.0,0.03696]
[1761853207145,0.93350937,106650.0,106640.0,0.0587]
[1761853207653,1.03345877,106650.0,106640.0,0.00225]
[1761853207859,0.84541433,106650.0,106640.0,0.00225]
[1761853208054,1.16117433,106650.0,106640.0,0.00225]
[1761853208356,1.16117433,106650.0,106640.0,0.0607]
[1761853208659,1.25926937,106650.0,106640.0,0.0607]
[1761853208854,1.26926937,106650.0,106640.0,0.01566]
[1761853209048,1.26926937,106650.0,106640.0,0.00225]
[1761853209250,1.26926937,106650.0,106640.0,0.00325]
[1761853209548,1.06122493,106650.0,106640.0,0.01666]
[1761853209743,1.36921877,106650.0,106640.0,0.00225]
[1761853209944,1.37021877,106650.0,106640.0,0.00225]
[1761853210258,0.72817896,106650.0,106640.0,0.25874444]
[1761853210454,0.72817896,106650.0,106640.0,0.0597]
[1761853210653,0.9262234,106650.0,106640.0,0.25774444]
[1761853210858,0.9262234,106650.0,106640.0,0.0597]
[1761853211353,0.9272234,106650.0,106640.0,0.0587]
[1761853211859,0.72917896,106650.0,106640.0,0.0587]
[1761853212049,0.9272234,106650.0,106640.0,0.0587]
[1761853212244,0.72917896,106650.0,106640.0,0.25674444]
[1761853212558,0.9272234,106650.0,106640.0,0.25674444]
[1761853212952,0.9272234,106650.0,106640.0,0.03696]
[1761853213156,0.74917896,106650.0,106640.0,0.00025]
[1761853213354,0.9472234,106650.0,106640.0,0.00025]
[1761853213653,1.13526784,106650.0,106640.0,0.00025]
[1761853213855,0.77252505,106650.0,106640.0,0.00025]
[1761853214059,0.97056949,106650.0,106640.0,0.01366]
[1761853214255,0.76252505,106650.0,106640.0,0.01366]
[1761853214457,0.76252505,106650.0,106640.0,0.0587]
[1761853214655,0.95061086,106650.0,106640.0,0.25674444]
[1761853214965,1.06056026,106650.0,106640.0,0.00025]
[1761853215169,0.76256642,106650.0,106640.0,0.00025]
[1761853215461,0.76256642,106650.0,106640.0,0.05819]
[1761853215462,1.09673239,106650.0,106640.0,0.05819]
[1761853215665,1.09673239,106650.0,106630.0,0.01358]
[1761853215666,1.29477683,106650.0,106630.0,0.05819]
[1761853215969,0.0938039,106630.0,106620.0,0.05819]
[1761853216264,0.46535875,106630.0,106620.0,0.05819]
[1761853216452,0.46535875,106630.0,106620.0,0.25623444]
[1761853217062,0.82615875,106630.0,106620.0,0.05819]
[1761853217375,0.82615875,106630.0,106610.0,0.0263649]
[1761853217376,0.0938126,106620.0,106610.0,0.0263649]
[1761853217551,2.34817338,106620.0,106580.0,0.12536668]
[1761853217861,2.34817338,106620.0,106550.0,0.40541]
[1761853217862,0.05739,106560.0,106550.0,0.40541]
[1761853218047,0.05128553,106550.0,106540.0,0.04461]
[1761853218253,0.29932997,106550.0,106540.0,0.05819]
[1761853218447,0.04412,106540.0,106530.0,0.40541]
[1761853218648,0.45492,106540.0,106520.0,0.01358]
[1761853218851,0.02262,106490.0,106480.0,0.40541]
[1761853219055,0.04412,106490.0,106480.0,0.25623444]
[1761853219251,0.3608,106510.0,106500.0,0.05504]
[1761853219562,0.3608,106510.0,106480.0,0.30631492]
[1761853219563,0.01586491,106490.0,106480.0,0.30631492]
[1761853219767,0.3608,106490.0,106480.0,0.05819]
[1761853219960,0.42060771,106490.0,106480.0,0.04461]
[1761853220259,0.01327,106480.0,106470.0,0.38332]
[1761853220467,0.10059772,106490.0,106480.0,0.05819]
[1761853220658,0.43289772,106490.0,106480.0,0.05819]
[1761853220859,0.03712,106490.0,106480.0,0.05819]
[1761853221053,0.45439772,106490.0,106480.0,0.05819]
[1761853221253,0.47439772,106490.0,106460.0,0.62250492]
[1761853221464,0.04741,106470.0,106460.0,0.05491]
[1761853221661,0.41821,106480.0,106470.0,0.05491]
[1761853221861,0.07329,106460.0,106450.0,0.3608]
[1761853222063,0.05641,106460.0,106450.0,0.05491]
[1761853222254,0.06170343,106460.0,106450.0,0.05491]
[1761853222457,0.05641,106440.0,106410.0,0.3608]
[1761853222667,0.05641,106440.0,106360.0,0.01703]
[1761853222668,0.00999999,106380.0,106360.0,0.01703]
[1761853222851,0.25812491,106400.0,106370.0,0.05491]
[1761853223055,0.25812491,106400.0,106390.0,0.05491]
[1761853223056,0.00999999,106400.0,106390.0,0.05491]
[1761853223259,0.00999999,106410.0,106400.0,0.01703]
[1761853223456,0.7216,106410.0,106400.0,0.32006492]
[1761853223652,0.7216,106410.0,106400.0,0.07194]
[1761853223858,0.79925941,106410.0,106400.0,0.32006492]
[1761853224177,0.00999999,106450.0,106430.0,0.05491]
[1761853224360,0.7216,106440.0,106430.0,0.05491]
[1761853224562,0.7216,106440.0,106430.0,0.30303492]
[1761853225166,0.3608,106460.0,106450.0,0.05491]
[1761853225372,0.3608,106480.0,106470.0,0.07194]
[1761853225668,0.3608,106480.0,106440.0,0.60892492]
[1761853225669,0.06309358,106470.0,106460.0,0.59276492]
[1761853225864,0.42389358,106470.0,106460.0,0.34468]
[1761853226169,0.51389357,106470.0,106460.0,0.33748]
[1761853226555,0.43389357,106470.0,106460.0,0.33748]
[1761853226756,0.43389357,106470.0,106460.0,0.64331492]
[1761853226962,0.37079999,106490.0,106480.0,0.05491]
[1761853227163,0.37079999,106490.0,106480.0,0.64791492]
[1761853227366,0.00999999,106490.0,106480.0,0.89883984]
[1761853227666,0.3608,106500.0,106490.0,0.05491]
[1761853227965,0.37079999,106510.0,106500.0,0.07194]
[1761853228170,0.3608,106510.0,106500.0,0.32006492]
[1761853228370,0.3608,106510.0,106500.0,0.32286492]
[1761853228567,0.3608,106530.0,106520.0,0.05491]
[1761853228764,0.37079999,106530.0,106500.0,0.01703]
[1761853228962,0.37079999,106510.0,106500.0,0.04499]
[1761853229164,0.00999999,106510.0,106500.0,0.66494492]
[1761853229367,0.00999999,106510.0,106450.0,0.3608]
[1761853229368,0.68344447,106510.0,106450.0,0.3608]
[1761853229562,0.3608,106460.0,106450.0,0.34832]
[1761853229860,0.42257264,106460.0,106450.0,0.40323]
[1761853230060,0.06177264,106460.0,106450.0,1.01215492]
[1761853230260,0.01799999,106500.0,106490.0,0.05491]
[1761853230463,0.01799999,106500.0,106490.0,0.65127492]
[1761853230672,0.008,106500.0,106490.0,0.65127492]
[1761853230875,0.3618,106510.0,106500.0,0.01703]
[1761853231065,0.3608,106510.0,106500.0,0.07194]
[1761853231266,0.41330969,106510.0,106500.0,0.07194]
[1761853231461,0.32330968,106510.0,106500.0,0.07194]
[1761853231673,0.00999999,106520.0,106510.0,0.05491]
[1761853231877,0.3608,106530.0,106520.0,0.05491]
[1761853232176,0.41934277,106530.0,106520.0,0.65179492]
[1761853232361,0.05854277,106530.0,106520.0,0.65179492]
[1761853232568,0.41934277,106530.0,106520.0,0.34876]
[1761853232765,0.00999999,106510.0,106500.0,0.01703]
[1761853232967,0.00999999,106510.0,106500.0,0.68086492]
[1761853233175,0.40934278,106530.0,106520.0,0.05491]
[1761853233376,0.37079999,106530.0,106520.0,0.05491]
[1761853233576,0.41669879,106530.0,106520.0,0.05491]
[1761853233771,0.41669879,106530.0,106500.0,0.62695492]
[1761853233969,0.3608,106520.0,106510.0,0.02796]